bitfinex-derivatives/quotes_ETHF0:USTF0_20250909
["timestamp","ask_amount","ask_price","bid_price","bid_amount"]
[1757424908750,0.244,4347.7,4347.5,0.1227]
[1757424908949,0.244,4347.7,4347.6,0.3042]
[1757424910252,3.4518,4347.7,4347.1,0.3042]
[1757424910556,2.8902,4347.7,4347.1,0.3042]
[1757424911056,0.3058,4347.6,4346.8,0.3042]
[1757424911252,2.8902,4347.7,4346.8,0.3042]
[1757424911751,2.8902,4347.7,4347.5,0.1227]
[1757424911956,2.8902,4347.7,4347.6,0.3042]
[1757424912350,0.244,4347.7,4347.6,0.3042]
[1757424912556,0.244,4348.1,4348.0,0.1227]
[1757424912756,0.244,4348.1,4348.0,0.4269]
[1757424912958,3.2078,4348.2,4348.0,0.1227]
[1757424913162,3.2078,4348.2,4348.1,0.3042]
[1757424913454,3.2078,4349.3,4348.2,0.3042]
[1757424913654,1.23266053,4350.0,4349.1,0.3042]
[1757424913851,3.2078,4350.0,4349.3,0.3042]
[1757424914053,0.3058,4350.2,4349.3,0.3042]
[1757424914252,3.2078,4349.9,4349.3,0.3042]
[1757424914453,3.4518,4349.9,4349.3,0.3042]
[1757424914655,0.3058,4349.8,4349.3,0.3042]
[1757424914859,3.7576,4349.9,4349.3,0.3042]
[1757424915656,0.53263866,4349.8,4349.3,0.3042]
[1757424915858,0.25203866,4349.7,4349.1,0.3042]
[1757424916060,3.4518,4349.9,4349.2,1.1504]
[1757424916257,4.44046053,4350.5,4349.5,0.1227]
[1757424916457,0.244,4350.4,4349.6,0.3042]
[1757424917648,0.244,4350.4,4349.9,3.2078]
[1757424917854,3.2078,4351.0,4350.1,0.3202]
[1757424918049,0.244,4350.9,4350.1,0.3202]
[1757424918257,3.2078,4351.0,4350.6,0.3202]
[1757424918559,3.2078,4351.0,4350.6,0.5642]
[1757424918749,3.2078,4351.5,4350.8,0.3202]
[1757424920355,0.5139,4351.4,4350.8,0.3202]
[1757424921255,0.244,4351.4,4350.8,0.3202]
[1757424921454,3.2078,4351.5,4351.1,0.3202]
[1757424921848,3.4508,4352.2,4351.1,0.3202]
[1757424922049,3.2078,4352.2,4351.3,0.3202]
[1757424922252,0.2699,4352.9,4352.0,0.1285]
[1757424922253,0.243,4352.6,4352.0,0.1285]
[1757424922454,3.2078,4352.9,4352.1,0.3202]
[1757424922657,3.2078,4352.9,4352.6,0.3202]
[1757424922862,0.243,4353.3,4352.6,0.3202]
[1757424924754,0.243,4353.3,4353.1,0.3202]
[1757424925164,0.243,4353.3,4353.0,0.1285]
[1757424925364,3.2078,4353.6,4353.5,0.1285]
[1757424925668,3.2078,4354.5,4353.6,0.3202]
[1757424925861,3.2078,4354.5,4354.0,0.1285]
[1757424926367,3.4777,4354.5,4354.1,0.3202]
[1757424926564,3.4777,4354.5,4354.0,0.1285]
[1757424926766,3.2078,4354.5,4354.0,0.1285]
[1757424927168,3.2078,4354.5,4354.1,0.3202]
[1757424927368,0.2699,4354.4,4354.1,0.3202]
[1757424927566,0.2699,4354.4,4353.5,0.4487]
[1757424927870,0.243,4354.3,4353.5,0.6917]
[1757424928072,0.243,4354.3,4353.9,2.4136]
[1757424928670,0.243,4354.3,4354.0,0.3202]
[1757424928867,0.243,4354.3,4353.9,2.4136]
[1757424929365,3.2078,4354.0,4353.9,2.4136]
[1757424930162,7.2078,4354.0,4353.9,2.4136]
[1757424930567,7.9621433,4354.0,4353.9,2.4136]
[1757424930764,7.73246329,4354.0,4352.9,0.3202]
[1757424930965,3.2078,4353.3,4353.2,1.3352]
[1757424931165,3.4508,4353.3,4353.2,1.3352]
[1757424931361,0.243,4353.8,4353.2,1.6554]
[1757424931560,3.2078,4354.4,4353.3,0.3202]
[1757424931765,0.243,4354.0,4353.5,0.1285]
[1757424932161,3.2078,4353.9,4353.2,1.3352]
[1757424932566,3.2078,4353.3,4353.2,1.3352]
[1757424932768,3.4508,4353.3,4353.2,1.3352]
[1757424933068,7.97523496,4353.3,4351.9,0.3202]
[1757424933275,3.2078,4352.6,4351.9,0.3202]
[1757424933573,0.243,4352.5,4352.1,0.3202]
[1757424933761,0.243,4352.5,4351.8,3.2078]
[1757424934072,0.243,4352.5,4352.0,0.4487]
[1757424934268,0.243,4352.5,4352.1,0.3202]
[1757424934768,0.243,4352.5,4351.9,3.1032]
[1757424934968,0.52469523,4352.4,4351.9,3.1032]
[1757424935168,0.52469523,4352.3,4351.9,3.1032]
[1757424935366,0.76803211,4352.2,4351.9,3.1032]
[1757424935568,3.2078,4352.0,4351.9,3.1032]
[1757424935770,3.73281334,4352.0,4351.9,3.1032]
[1757424936375,3.97581334,4352.0,4351.9,3.4234]
[1757424936872,3.97581334,4352.0,4351.9,0.3202]
[1757424937271,3.97581334,4352.0,4351.6,0.3202]
[1757424937472,0.52501334,4351.9,4351.6,0.3202]
[1757424937667,0.52501334,4351.9,4351.5,0.1285]
[1757424938075,0.52501334,4351.9,4351.6,0.3202]
[1757424938264,0.52501334,4351.9,4351.0,0.4487]
[1757424938469,3.2078,4351.5,4351.1,0.3202]
[1757424938664,0.76801334,4351.4,4351.0,0.1285]
[1757424938882,0.76801334,4351.4,4351.1,0.3202]
[1757424938883,0.52501334,4351.3,4351.1,0.3202]
[1757424939173,0.52501334,4351.3,4351.0,0.1285]
[1757424939373,0.52501334,4351.3,4351.1,0.3202]
[1757424939773,4.0,4351.2,4350.6,0.3202]
[1757424939972,3.2078,4351.0,4350.5,0.1285]
[1757424940172,0.52501334,4350.9,4350.6,0.3202]
[1757424940372,0.243,4350.8,4350.6,0.3202]
[1757424940573,0.52501334,4350.7,4350.6,0.3202]
[1757424941366,0.243,4350.8,4350.5,0.1285]
[1757424941577,0.52501334,4350.7,4350.6,0.3202]
[1757424942278,1.23266053,4350.7,4349.9,0.3202]
[1757424942471,3.2078,4350.3,4349.5,0.1285]
[1757424942666,0.76801334,4350.2,4350.1,0.3202]
[1757424943377,0.52501334,4350.2,4350.1,0.3202]
[1757424944272,0.52501334,4350.2,4349.7,0.3202]
[1757424944472,0.52501334,4350.2,4350.0,0.4487]
[1757424945078,0.52501334,4350.2,4350.1,0.3202]
[1757424945470,0.52501334,4350.2,4349.5,0.4487]
[1757424945879,0.52501334,4350.2,4349.5,0.1285]
[1757424946078,0.243,4350.1,4350.0,0.4487]
[1757424946273,0.76801334,4350.1,4350.0,0.4487]
[1757424947378,0.76801334,4350.1,4350.0,0.3202]
[1757424947778,0.76801334,4350.1,4350.0,0.443]
[1757424947976,4.99789334,4350.1,4348.2,3.2078]
[1757424948172,3.2078,4349.1,4348.4,0.2985]
[1757424948374,3.2078,4348.6,4348.0,0.1228]
[1757424948576,0.76801334,4348.5,4348.0,0.4213]
[1757424948773,3.2078,4348.1,4347.5,0.1228]
[1757424948974,3.2078,4347.6,4347.5,0.4213]
[1757424949275,0.76801334,4347.6,4347.5,0.4213]
[1757424949480,0.243,4347.6,4347.5,0.4213]
[1757424950686,3.4508,4347.6,4347.0,0.4213]
[1757424950881,0.52712168,4347.5,4347.0,0.1228]
[1757424951184,0.52712168,4347.5,4347.1,0.2985]
[1757424951380,0.52712168,4347.5,4347.0,0.1228]
[1757424951578,3.4508,4347.6,4347.0,0.1228]
[1757424952076,3.4508,4347.6,4347.1,0.2985]
[1757424952683,3.4508,4347.6,4347.5,0.4213]
[1757424952980,0.1148,4348.4,4348.0,0.4213]
[1757424953184,0.1148,4348.4,4348.1,0.2985]
[1757424953185,0.243,4348.3,4348.1,0.2985]
[1757424953586,0.1148,4348.4,4348.1,0.2985]
[1757424954776,0.1148,4348.4,4348.0,0.4213]
[1757424954982,0.1148,4348.4,4348.1,0.2985]
[1757424954983,3.2078,4348.3,4348.1,0.2985]
[1757424955283,0.1148,4348.4,4348.1,0.2985]
[1757424955482,0.3578,4348.4,4348.1,0.2985]
[1757424956284,3.2078,4349.5,4348.6,0.2985]
[1757424956484,0.243,4349.7,4349.1,0.2985]
[1757424956685,0.243,4349.7,4349.6,0.2985]
[1757424956879,3.2078,4350.2,4349.6,0.2985]
[1757424957089,3.2078,4350.7,4350.1,0.2985]
[1757424958884,0.243,4350.8,4350.6,0.2985]
[1757424959181,3.2078,4351.2,4350.6,0.2985]
[1757424959387,0.3082,4351.0,4350.0,3.6291]
[1757424959583,0.243,4350.9,4350.0,3.6291]
[1757424959787,0.243,4350.9,4350.1,0.2985]
[1757424960282,3.2078,4350.7,4350.1,0.2985]
[1757424960881,3.2078,4350.7,4349.5,3.3306]
[1757424961082,3.2078,4350.2,4349.5,0.4213]
[1757424961397,3.2078,4349.7,4349.0,0.4213]
[1757424961585,3.2078,4349.9,4349.5,0.1228]
[1757424961786,3.2078,4349.9,4349.6,0.2985]
[1757424962087,3.516,4349.9,4349.6,0.2985]
[1757424962288,0.52869497,4349.8,4349.6,0.2985]
[1757424962489,0.3082,4349.6,4349.0,0.2985]
[1757424962681,0.7721836,4349.5,4348.8,0.2985]
[1757424962882,0.5291836,4349.4,4348.8,0.2985]
[1757424963682,3.2078,4350.4,4349.6,0.2985]
[1757424963885,0.52931035,4350.3,4350.0,0.1228]
[1757424964084,0.52931035,4350.2,4350.1,0.2985]
[1757424964286,0.3082,4351.3,4350.1,0.2985]
[1757424964287,4.44046053,4351.5,4350.5,0.1228]
[1757424964491,0.7735433,4351.4,4350.6,0.2985]
[1757424964690,0.5295433,4351.3,4350.6,0.2985]
[1757424965591,3.516,4351.0,4350.1,0.2985]
[1757424965797,0.5295433,4350.9,4350.1,0.2985]
[1757424966594,3.2078,4350.3,4349.5,0.4213]
[1757424966891,0.5295433,4350.2,4349.5,0.4213]
[1757424967097,0.5295433,4350.2,4349.0,0.2985]
[1757424967399,3.2078,4349.8,4349.5,1.8168]
[1757424967696,0.3082,4349.6,4349.5,1.8168]
[1757424967895,0.8377433,4349.6,4349.5,1.8168]
[1757424968283,0.99797684,4349.6,4348.5,0.4213]
[1757424968487,3.2078,4349.2,4348.5,0.4213]
[1757424968693,0.7735433,4349.1,4348.5,0.4213]
[1757424968903,0.5295433,4349.0,4348.6,0.2985]
[1757424969191,0.8377433,4349.0,4348.2,3.2078]
[1757424969393,0.5295433,4348.9,4348.2,3.2078]
[1757424969590,3.2078,4348.7,4348.0,0.1228]
[1757424969796,0.7735433,4348.6,4348.0,0.1228]
[1757424970095,0.8377433,4348.5,4348.1,0.2985]
[1757424970297,0.5295433,4348.4,4348.1,0.2985]
[1757424970699,0.5295433,4348.4,4348.2,3.1753]
[1757424970902,0.5295433,4348.4,4348.3,0.2985]
[1757424971395,0.5295433,4348.5,4348.3,0.2985]
[1757424972399,0.5295433,4348.5,4348.2,2.8768]
[1757424972400,0.244,4348.6,4348.5,0.4213]
[1757424972696,0.77474956,4348.6,4348.5,0.4213]
[1757424972899,0.77474956,4348.6,4348.2,6.0846]
[1757424973091,0.77474956,4348.6,4348.3,0.2985]
[1757424973092,3.2078,4348.4,4348.3,0.2985]
[1757424973292,3.73854956,4348.4,4348.3,0.2985]
[1757424973596,0.3082,4348.3,4348.0,3.3352]
[1757424973897,0.4129,4348.0,4347.1,3.2078]
[1757424974093,0.4129,4348.0,4346.8,0.2985]
[1757424974094,3.516,4347.6,4346.8,0.2985]
[1757424974300,0.77474956,4347.5,4346.8,0.2985]
[1757424974494,0.53074956,4347.4,4346.8,0.2985]
[1757424974690,0.53074956,4347.3,4346.7,0.2985]
[1757424974995,0.53074956,4347.2,4347.0,0.1228]
[1757424975200,0.244,4347.5,4347.3,0.2985]
[1757424975499,0.53060311,4347.4,4347.3,0.2985]
[1757424977094,0.244,4347.8,4347.2,1.7024]
[1757424977291,0.53050763,4347.7,4347.3,0.3169]
[1757424977496,0.53050763,4347.6,4347.2,1.7024]
[1757424977691,0.3058,4347.4,4347.2,1.7024]
[1757424977998,0.83630763,4347.3,4347.2,1.7024]
[1757424978205,0.99654973,4347.3,4347.2,1.7024]
[1757424978395,0.99654973,4347.3,4347.2,1.4024]
[1757424978896,0.3058,4347.2,4346.6,3.2078]
[1757424979095,0.3058,4347.0,4346.6,3.2078]
[1757424979291,0.77350763,4346.9,4346.5,2.8288]
[1757424979492,0.3058,4346.7,4346.5,2.8288]
[1757424979799,0.1047,4346.5,4345.9,3.2078]
[1757424979997,0.3058,4346.2,4345.9,3.2078]
[1757424980302,0.3058,4346.0,4345.2,0.3169]
[1757424980598,3.2078,4345.6,4345.5,0.1255]
[1757424980802,0.53050763,4345.6,4345.5,0.4424]
[1757424981303,0.243,4346.0,4345.6,0.3169]
[1757424981598,0.52925974,4345.9,4345.6,0.3169]
[1757424981793,0.243,4346.3,4346.0,0.1255]
[1757424981993,0.52930122,4346.2,4346.1,0.3169]
[1757424982600,3.2078,4346.8,4346.5,0.1255]
[1757424982793,0.52915804,4346.7,4346.6,3.5247]
[1757424982990,3.2078,4347.3,4346.7,0.3169]
[1757424982991,3.4518,4347.3,4346.7,0.3169]
[1757424983297,0.52926154,4347.2,4347.1,0.3169]
[1757424983500,1.23266053,4348.0,4347.1,0.3169]
[1757424983501,0.244,4347.7,4347.1,0.3169]
[1757424983700,0.52922905,4347.6,4347.5,0.1255]
[1757424983904,0.244,4347.7,4347.6,0.3169]
[1757424984493,0.244,4347.7,4347.1,3.2078]
[1757424984705,0.3058,4347.3,4346.7,0.244]
[1757424984903,0.52921222,4347.2,4346.7,0.244]
[1757424985101,3.2078,4347.4,4346.7,0.244]
[1757424985102,0.244,4347.7,4346.8,0.3169]
[1757424985300,0.52923845,4347.6,4347.0,0.4424]
[1757424985502,0.244,4347.7,4347.1,0.3169]
[1757424986298,0.3058,4347.5,4347.1,0.3169]
[1757424986500,0.3058,4347.6,4347.1,0.3169]
[1757424986702,0.3058,4347.3,4346.5,0.3169]
[1757424986893,0.77310003,4347.2,4346.5,0.3169]
[1757424987098,0.52910003,4347.1,4346.5,0.3169]
[1757424987294,0.52910003,4347.1,4346.5,0.4424]
[1757424987493,0.244,4347.2,4346.5,0.4424]
[1757424987698,0.244,4347.2,4347.0,0.1255]
[1757424987903,3.2078,4347.9,4347.1,0.3169]
[1757424988104,0.77316233,4347.8,4347.1,0.3169]
[1757424988306,0.244,4347.8,4347.1,0.3169]
[1757424988604,0.244,4347.8,4347.5,0.1255]
[1757424988798,3.2078,4347.9,4347.5,0.1255]
[1757424989005,3.2078,4347.9,4347.6,0.3169]
[1757424989403,0.244,4348.1,4348.0,0.1255]
[1757424989603,0.244,4348.1,4348.0,0.4424]
[1757424989803,3.2078,4348.4,4348.0,0.1255]
[1757424990506,3.2078,4348.4,4347.5,0.6864]
[1757424990507,3.5136,4348.4,4347.5,0.6864]
[1757424990708,0.244,4348.6,4348.0,0.1255]
[1757424991103,3.2078,4349.4,4348.6,0.3169]
[1757424991306,0.244,4349.2,4349.0,0.1255]
[1757424991504,0.244,4349.2,4349.1,0.3169]
[1757424992505,3.5136,4350.1,4349.1,3.5247]
[1757424992707,3.5136,4350.1,4349.2,0.3169]
[1757424992708,0.53015409,4350.0,4349.2,0.3169]
[1757424992896,3.2078,4350.1,4349.6,0.3169]
[1757424993097,3.2078,4350.1,4349.5,0.1255]
[1757424993299,3.2078,4350.1,4349.6,0.3169]
[1757424993500,3.2078,4350.1,4349.5,0.1255]
[1757424993703,3.2078,4350.1,4349.6,0.3169]
[1757424994006,0.244,4350.4,4349.7,3.2078]
[1757424994205,0.244,4350.4,4350.1,0.3169]
[1757424994708,3.2078,4351.2,4350.5,0.1255]
[1757424995008,3.2078,4351.2,4351.1,0.3169]
[1757424995205,0.244,4351.5,4351.1,0.3169]
[1757424995406,0.244,4351.5,4351.0,0.1255]
[1757424995603,0.244,4351.5,4351.1,0.3169]
[1757424995908,3.5136,4352.3,4351.4,3.5247]
[1757424996207,1.47666053,4353.2,4352.1,3.2078]
[1757424996417,0.52955381,4353.1,4352.6,3.2078]
[1757424996608,0.244,4353.5,4352.7,0.3169]
[1757424996806,0.52948939,4353.4,4352.7,0.3169]
[1757424997111,0.52948939,4353.3,4352.7,0.3169]
[1757424997312,0.244,4353.5,4352.7,0.3169]
[1757424997708,3.2078,4353.1,4352.7,0.3169]
[1757424997911,0.3058,4353.0,4352.7,0.3169]
[1757424998506,3.2078,4353.1,4352.5,0.1255]
[1757424998707,33.133,4353.8,4352.5,0.1255]
[1757424998708,33.133,4353.8,4352.7,0.3169]
[1757424998908,0.17932398,4355.1,4352.6,3.2078]
[1757424998909,3.2078,4354.8,4354.1,0.3169]
[1757424999112,0.3058,4355.8,4354.8,0.3169]
[1757424999713,0.3058,4355.8,4354.8,0.5619]
[1757424999912,0.3058,4355.8,4354.8,0.3169]
[1757425000104,0.3058,4355.4,4354.4,3.2078]
[1757425000306,0.245,4355.3,4354.4,3.2078]
[1757425000504,3.2078,4355.0,4353.6,3.5247]
[1757425000711,3.2078,4354.0,4353.6,0.3169]
[1757425000907,0.3058,4353.9,4353.0,3.6502]
[1757425001113,3.2078,4354.0,4353.1,0.3169]
[1757425001316,0.245,4354.1,4353.6,0.3169]
[1757425001507,3.5136,4355.1,4353.6,0.3169]
[1757425001712,0.245,4355.0,4354.0,3.2078]
[1757425002013,0.245,4355.0,4354.1,0.3169]
[1757425002908,3.2078,4354.5,4353.5,0.6874]
[1757425003608,3.7586,4354.5,4353.5,0.4424]
[1757425004406,0.244,4354.8,4354.2,0.3169]
[1757425004607,0.244,4355.0,4354.2,0.3169]
[1757425005314,0.244,4355.0,4354.1,3.2078]
[1757425005703,0.244,4355.0,4354.2,0.3169]
[1757425005908,3.2078,4354.6,4353.7,0.244]
[1757425006113,3.2078,4354.6,4353.6,0.3169]
[1757425006306,0.5498,4354.5,4353.6,0.3169]
[1757425006511,3.2078,4354.1,4353.5,3.2078]
[1757425006708,0.2958,4353.9,4353.1,0.3169]
[1757425007215,0.244,4353.8,4353.1,0.3169]
[1757425008414,0.2958,4353.5,4352.6,0.2938]
[1757425008617,0.2958,4353.0,4352.6,0.2938]
[1757425008917,3.2078,4353.1,4351.0,0.1232]
[1757425008918,3.5036,4353.1,4352.1,0.2938]
[1757425009509,3.2078,4353.1,4353.0,0.1232]
[1757425009818,3.2078,4353.1,4352.3,0.2938]
[1757425010015,0.2958,4353.0,4352.3,0.2938]
[1757425010511,0.2958,4353.0,4351.8,3.5016]
[1757425010821,3.2078,4352.6,4351.8,0.2938]
[1757425011026,0.245,4352.5,4351.8,0.2938]
[1757425011710,0.245,4353.7,4352.6,0.2938]
[1757425012117,0.245,4353.7,4353.0,0.1232]
[1757425012316,0.245,4353.7,4352.9,0.2938]
[1757425012317,0.5408,4353.7,4352.9,0.2938]
[1757425012624,0.245,4353.7,4353.1,0.2938]
[1757425013020,0.245,4353.7,4352.6,0.2938]
[1757425013021,3.2078,4353.3,4352.6,0.2938]
[1757425013419,3.2078,4353.3,4352.7,3.2078]
[1757425013616,0.245,4353.5,4352.8,0.2938]
[1757425014517,0.2958,4353.4,4352.3,0.214]
[1757425014718,0.2958,4353.2,4352.2,3.5016]
[1757425015523,3.2078,4353.3,4352.3,0.2938]
[1757425015924,0.2958,4353.2,4352.3,0.2938]
[1757425016430,0.77143237,4353.1,4352.3,0.2938]
[1757425016729,0.245,4353.1,4352.3,0.2938]
[1757425017424,0.245,4353.1,4352.6,0.2938]
[1757425017624,3.2078,4353.3,4352.6,0.2938]
[1757425017929,0.8229849,4353.2,4352.3,0.2938]
[1757425018122,3.2078,4353.3,4352.3,0.2938]
[1757425018322,0.52719497,4353.2,4352.3,0.2938]
[1757425018630,3.2078,4352.8,4352.0,0.1232]
[1757425018831,0.52719497,4352.7,4352.0,0.1232]
[1757425019029,0.52719497,4352.7,4352.1,0.2938]
[1757425019730,0.52719497,4352.7,4351.7,3.2078]
[1757425019731,0.2958,4352.5,4351.7,3.2078]
[1757425019929,0.52719497,4352.4,4351.7,3.2078]
[1757425020121,0.2958,4352.3,4351.7,3.2078]
[1757425020428,0.2958,4352.1,4351.8,0.2938]
[1757425020623,0.52719497,4352.0,4351.8,0.2938]
[1757425020927,0.52719497,4352.0,4351.7,3.2078]
[1757425021234,0.16007595,4351.9,4351.1,0.2938]
[1757425021528,0.16007595,4351.8,4351.1,0.2938]
[1757425021827,0.52719497,4351.7,4351.1,0.2938]
[1757425022228,0.16042279,4351.6,4351.1,0.2938]
[1757425022534,0.52719497,4351.5,4350.6,0.2938]
[1757425023229,0.16052681,4351.4,4350.6,0.2938]
[1757425023422,1.23266053,4350.9,4350.0,3.6248]
[1757425023620,0.2958,4350.7,4350.0,3.5016]
[1757425023829,1.23266053,4350.5,4350.0,3.331]
[1757425024031,0.68773923,4350.4,4350.1,0.2938]
[1757425024235,0.52719497,4350.3,4350.1,0.2938]
[1757425024434,1.23266053,4351.2,4350.3,0.2938]
[1757425024736,0.4136,4351.0,4350.2,3.2078]
[1757425024934,3.2078,4351.2,4350.7,3.2078]
[1757425025328,3.2078,4351.2,4350.8,0.2938]
[1757425025523,3.2078,4351.2,4350.7,3.2078]
[1757425025829,0.1178,4351.0,4350.2,3.4528]
[1757425026030,0.2958,4350.9,4350.2,3.4528]
[1757425026631,1.23266053,4351.2,4350.7,3.2078]
[1757425026825,4.44046053,4351.7,4350.8,0.2938]
[1757425027027,3.2078,4351.7,4350.8,0.2938]
[1757425027434,0.2958,4351.6,4350.8,0.2938]
[1757425027633,0.1178,4351.5,4350.3,0.2938]
[1757425027831,0.2958,4351.1,4350.1,3.2078]
[1757425028235,0.1178,4351.0,4350.1,3.2078]
[1757425028434,0.2958,4350.9,4350.1,3.2078]
[1757425028837,3.2078,4351.2,4350.2,0.2938]
[1757425029333,0.1178,4351.0,4350.2,0.2938]
[1757425029532,0.1178,4351.0,4350.1,3.2078]
[1757425029726,3.2078,4350.7,4349.7,0.2938]
[1757425029931,0.2958,4350.9,4350.1,0.2938]
[1757425030634,3.2078,4351.2,4350.6,0.2938]
[1757425030837,1.23266053,4351.8,4351.1,3.2078]
[1757425031040,4.85229177,4352.3,4351.2,0.2938]
[1757425031041,0.2958,4352.0,4351.2,0.2938]
[1757425031335,1.23266053,4352.4,4351.7,0.2938]
[1757425031542,1.23266053,4352.7,4351.7,0.2938]
[1757425031741,1.23266053,4352.8,4352.2,3.2078]
[1757425032040,1.23266053,4353.4,4352.7,3.2078]
[1757425032236,1.64626053,4353.5,4352.7,3.5016]
[1757425032435,0.4136,4353.5,4352.7,3.5016]
[1757425032743,1.23266053,4353.8,4353.2,3.2078]
[1757425032947,0.2958,4353.5,4353.2,3.2078]
[1757425033438,3.3256,4354.0,4353.3,0.2938]
[1757425033439,1.23266053,4354.0,4353.3,0.2938]
[1757425033648,4.55826053,4354.5,4353.3,0.2938]
[1757425033843,1.52846053,4354.8,4353.9,0.2938]
[1757425034049,0.2958,4354.8,4353.9,0.2938]
[1757425035937,1.35046053,4355.0,4354.8,1.405]
[1757425036236,1.35046053,4355.0,4353.0,0.1232]
[1757425036237,0.37142985,4354.9,4353.4,1.5122]
[1757425036438,3.2078,4354.4,4353.6,0.2938]
[1757425036642,1.75894366,4354.3,4353.6,0.2938]
[1757425036843,0.52825887,4354.2,4353.6,0.2938]
[1757425037046,3.2078,4354.4,4354.0,0.1209]
[1757425037047,0.52825887,4354.1,4354.0,0.1209]
[1757425037247,1.23068479,4354.6,4354.0,3.3287]
[1757425037449,0.5281445,4354.5,4354.0,0.1209]
[1757425037846,0.5281445,4354.4,4354.1,0.2944]
[1757425038154,1.64449177,4355.1,4353.4,1.2184]
[1757425038155,3.2087,4354.2,4353.4,1.2184]
[1757425038343,1.23068479,4353.9,4353.5,0.1209]
[1757425038546,2.05561471,4354.9,4353.5,0.1209]
[1757425038547,0.5281445,4353.8,4353.6,0.2944]
[1757425038748,1.23068479,4354.6,4354.0,0.1209]
[1757425038943,0.52813568,4354.5,4354.2,1.2064]
[1757425039252,0.0009,4354.4,4354.2,1.2064]
[1757425039557,0.52813568,4354.4,4354.2,1.2064]
[1757425039851,0.52806825,4354.3,4354.2,1.5008]
[1757425040245,0.52806825,4354.3,4354.2,1.2064]
[1757425040550,0.52806825,4354.3,4354.2,1.5008]
[1757425040751,0.52806825,4354.3,4354.2,1.2064]
[1757425040952,4.52896825,4354.3,4354.2,1.2064]
[1757425041260,4.67064214,4354.3,4354.2,1.2055]
[1757425041444,4.90030215,4354.3,4354.2,1.2055]
[1757425041649,0.52806825,4354.3,4354.2,1.2055]
[1757425041850,0.14167046,4354.3,4353.7,0.2944]
[1757425042151,3.2078,4353.8,4353.0,0.4176]
[1757425042452,3.2078,4353.8,4352.9,3.0336]
[1757425042453,3.2078,4353.3,4352.9,3.0336]
[1757425042654,0.52806825,4353.2,4352.9,3.0336]
[1757425042959,1.75802608,4353.2,4352.9,3.0336]
[1757425043250,1.75802608,4353.1,4352.9,3.0336]
[1757425043551,0.6609032,4353.0,4352.9,3.0336]
[1757425044752,4.6609032,4353.0,4352.9,3.0336]
[1757425045054,4.6609032,4353.0,4352.0,0.1209]
[1757425045055,6.30539497,4353.0,4352.0,0.1209]
[1757425045254,3.2078,4352.3,4352.1,0.2944]
[1757425045459,0.52806825,4352.2,4352.1,0.2944]
[1757425045845,1.43439396,4352.7,4352.1,0.2944]
[1757425046048,1.23052571,4353.1,4352.5,0.1209]
[1757425046254,1.23052571,4353.1,4352.6,0.2944]
[1757425046456,1.23052571,4353.2,4352.6,0.2944]
[1757425046755,1.23052571,4353.2,4352.0,0.1209]
[1757425046756,3.2078,4352.8,4352.0,0.4153]
[1757425047553,1.23052571,4353.0,4352.1,0.2944]
[1757425047755,1.23052571,4353.2,4352.1,0.2944]
[1757425047946,3.2078,4353.3,4353.1,0.2944]
[1757425047947,4.43832571,4353.3,4353.1,0.2944]
[1757425048146,3.2078,4353.3,4353.1,0.2944]
[1757425048455,3.2078,4354.0,4353.1,0.2944]
[1757425049449,0.2999,4353.9,4352.9,3.2078]
[1757425049754,3.5077,4353.5,4352.9,0.2944]
[1757425050758,0.2999,4352.9,4352.8,0.9536]
[1757425050964,0.2999,4352.9,4351.8,0.2944]
[1757425051257,3.2078,4352.5,4352.4,0.2944]
[1757425051457,2.87786059,4354.6,4352.4,0.2944]
[1757425051458,1.23052571,4353.1,4352.4,0.2944]
[1757425051661,1.23052571,4353.7,4353.6,0.2944]
[1757425051850,3.2078,4353.8,4353.5,0.1209]
[1757425052051,3.2078,4354.3,4354.0,0.1209]
[1757425052256,4.43832571,4355.1,4354.1,3.2078]
[1757425052560,1.23052571,4355.4,4355.0,0.4153]
[1757425052752,3.2078,4355.7,4355.1,0.2944]
[1757425053260,3.2078,4355.7,4354.5,0.1209]
[1757425053561,3.2078,4355.0,4354.0,0.4153]
[1757425053862,0.0243,4355.1,4354.0,0.4153]
[1757425053863,3.2078,4354.5,4354.1,0.2944]
[1757425054257,3.2078,4355.0,4354.1,0.2944]
[1757425055356,1.64449177,4356.2,4354.0,0.1209]
[1757425055357,3.2078,4355.5,4354.6,0.2944]
[1757425055755,3.2078,4356.1,4355.2,0.2944]
[1757425057261,3.2321,4356.1,4355.2,0.2944]
[1757425057858,0.0243,4355.5,4354.7,0.2944]
[1757425058064,3.2078,4355.1,4354.5,0.1209]
[1757425058365,0.52653572,4355.0,4354.5,0.1209]
[1757425058570,3.2078,4355.6,4354.6,0.2944]
[1757425058758,0.52676723,4355.5,4354.6,0.2944]
[1757425058954,3.2078,4355.1,4354.5,0.1209]
[1757425059158,0.52676723,4355.0,4354.5,0.1209]
[1757425059760,0.52676723,4355.0,4354.6,0.2944]
[1757425059963,0.52676723,4355.0,4354.5,0.1209]
[1757425060165,0.52676723,4355.0,4354.6,0.2944]
[1757425060768,0.52676723,4355.0,4354.5,0.1209]
[1757425061676,0.52676723,4355.0,4354.6,0.2944]
[1757425062071,0.52676723,4355.0,4354.7,0.2944]
[1757425062370,4.43832571,4356.1,4354.7,0.2944]
[1757425062571,0.66046956,4356.0,4354.7,0.2944]
[1757425062770,1.36353865,4355.9,4354.7,0.2944]
[1757425062972,0.13301294,4355.8,4355.1,0.2944]
[1757425063167,3.2078,4355.6,4355.0,1.528]
[1757425063368,0.0243,4355.4,4355.0,1.528]
[1757425063579,0.52745662,4355.3,4355.0,1.528]